Workbook

Sheet 2017年蓬江区区本级一般公共财政预算支出表
A1: 2017年蓬江区本级一般公共预算支出表（按功能分类）
C2: 单位：万元
A3: 项目 | B3: 2016年调整预算数 | C3: 2017年预算数
A4: 一般预算支出合计 | B4: =SUM(B5,B98,B101,B122,B144,B163,B177,B236,B279,B292,B303,B341,B346,B364,B375,B382,B392,B399,B404,B407) -> 220,096 | C4: =SUM(C5,C98,C101,C122,C144,C163,C177,C236,C279,C292,C303,C341,C346,C364,C375,C382,C392,C399,C404,C407) -> 205,980
A5: 一般公共服务支出 | B5: =SUM(B6,B11,B18,B24,B27,B33,B39,B41,B44,B47,B50,B54,B59,B67,B71,B76,B79,B83,B86,B91,B94,B96) -> 26,359 | C5: =SUM(C6,C11,C18,C24,C27,C33,C39,C41,C44,C47,C50,C54,C59,C67,C71,C76,C79,C83,C86,C91,C94,C96) -> 29,461
A6: 人大事务 | B6: =SUM(B7:B10) -> 1,076 | C6: =SUM(C7:C10) -> 848
A7: 行政运行 | B7: 626 | C7: 474
A8: 一般行政管理事务 | B8: 81 | C8: 89
A9: 人大会议 | B9: 164 | C9: 36
A10: 代表工作 | B10: 205 | C10: 249
A11: 政协事务 | B11: =SUM(B12:B17) -> 793 | C11: =SUM(C12:C17) -> 580
A12: 行政运行 | B12: 413 | C12: 352
A13: 一般行政管理事务 | B13: 117 | C13: 63
A14: 政协会议 | B14: 140 | C14: 60
A15: 委员视察 | B15: 80 | C15: 80
A16: 参政议政 | B16: 23 | C16: 20
A17: 其他政协事务支出 | B17: 20 | C17: 5
A18: 政府办公厅（室）及相关机构事务 | B18: =SUM(B19:B23) -> 3,222 | C18: =SUM(C19:C23) -> 4,024
A19: 行政运行 | B19: 534 | C19: 939
A20: 一般行政管理事务 | B20: 1275 | C20: 929
A21: 法制建设 | B21: 34 | C21: 34
A22: 信访事务 | B22: 223 | C22: =617+30 -> 647
A23: 事业运行 | B23: 1156 | C23: 1,475
A24: 发展与改革事务 | B24: =SUM(B25:B26) -> 388 | C24: =SUM(C25:C26) -> 356
A25: 行政运行 | B25: 300 | C25: 254
A26: 一般行政管理事务 | B26: 88 | C26: 102
A27: 统计信息事务 | B27: =SUM(B28:B32) -> 255 | C27: =SUM(C28:C32) -> 244
A28: 行政运行 | B28: 74 | C28: 74
A29: 一般行政管理事务 | B29: 50 | C29: 46
A30: 专项普查活动 | B30: 106 | C30: 112
A31: 统计抽样调查 | B31: 10
A32: 其他统计信息事务支出 | B32: 15 | C32: 12
A33: 财政事务 | B33: =SUM(B34:B38) -> 1,757 | C33: =SUM(C34:C38) -> 1,758
A34: 行政运行 | B34: 764 | C34: 615
A35: 预算改革业务 | B35: 20 | C35: 20
A36: 财政国库业务 | B36: 423 | C36: 391
A37: 信息化建设 | B37: 245 | C37: 37
A38: 其他财政事务支出 | B38: 305 | C38: 695
A39: 税收事务 | B39: =SUM(B40) -> 6,752 | C39: =SUM(C40) -> 6,031
A40: 其他税收事务支出 | B40: 6752 | C40: 6,031
A41: 审计事务 | B41: =SUM(B42:B43) -> 345 | C41: =SUM(C42:C43) -> 284
A42: 行政运行 | B42: 202 | C42: 196
A43: 一般行政管理事务 | B43: 143 | C43: 88
A44: 海关事务 | B44: =SUM(B45:B46) -> 70 | C44: =SUM(C45:C46) -> 70
A45: 一般行政管理事务 | B45: 60 | C45: 60
A46: 缉私办案 | B46: 10 | C46: 10
A47: 人力资源事务 | B47: =SUM(B48:B49) -> 315 | C47: =SUM(C49) -> 1,600
A48: 军队转业干部安置 | B48: 113
A49: 其他人力资源事务支出 | B49: 202 | C49: 1,600
A50: 纪检监察事务 | B50: =SUM(B51:B53) -> 673 | C50: =SUM(C51:C53) -> 650
A51: 行政运行 | B51: 433 | C51: 570
A52: 一般行政管理事务 | B52: 82
A53: 其他纪检监察事务支出 | B53: 158 | C53: 80
A54: 商贸事务 | B54: =SUM(B55:B58) -> 1,587 | C54: =SUM(C55:C58) -> 3,637
A55: 行政运行 | B55: 580 | C55: 509
A56: 一般行政管理事务 | B56: 815 | C56: 2,456
A57: 招商引资 | C57: 26
A58: 其他商贸事务支出 | B58: 192 | C58: 646
A59: 工商行政管理事务 | B59: =SUM(B60:B66) -> 3,163 | C59: =SUM(C60:C65) -> 2,558
A60: 行政运行 | B60: 486 | C60: 2,267
A61: 一般行政管理事务 | B61: 57 | C61: 95
A62: 工商行政管理专项 | B62: 129 | C62: 83
A63: 执法办案专项 | B63: 72 | C63: 59
A64: 消费者权益保护 | C64: 24
A65: 信息化建设 | B65: 53 | C65: 30
A66: 其他工商行政管理事务支出 | B66: 2366
A67: 港澳台侨事务 | B67: =SUM(B68:B70) -> 180 | C67: =SUM(C68:C70) -> 154
A68: 行政运行 | B68: 129 | C68: 111
A69: 一般行政管理事务 | B69: 43 | C69: 40
A70: 华侨事务 | B70: 8 | C70: 3
A71: 档案事务 | B71: =SUM(B72:B75) -> 182 | C71: =SUM(C72:C75) -> 173
A72: 行政运行 | B72: 12 | C72: 12
A73: 一般行政管理事务 | B73: 139 | C73: 119
A74: 档案馆 | B74: 25 | C74: 31
A75: 其他档案事务支出 | B75: 6 | C75: 11
A76: 民主党派及工商联事务 | B76: =SUM(B77:B78) -> 146 | C76: =SUM(C77:C78) -> 366
A77: 行政运行 | B77: 120 | C77: 90
A78: 一般行政管理事务 | B78: 26 | C78: =26+200+50 -> 276
A79: 群众团体事务 | B79: =SUM(B80:B82) -> 501 | C79: =SUM(C80:C82) -> 1,498
A80: 行政运行 | B80: 254 | C80: 210
A81: 一般行政管理事务 | B81: 230 | C81: 1,283
A82: 其他群众团体事务支出 | B82: 17 | C82: 5
A83: 党委办公厅（室）及相关机构事务 | B83: =SUM(B84:B85) -> 3,150 | C83: =SUM(C84:C85) -> 2,692
A84: 行政运行 | B84: 2050 | C84: 1,304
A85: 一般行政管理事务 | B85: 1100 | C85: =1298+90 -> 1,388
A86: 组织事务 | B86: =SUM(B87:B90) -> 1,550 | C86: =SUM(C87:C90) -> 1,132
A87: 行政运行 | B87: 1487 | C87: 396
A88: 一般行政管理事务 | B88: 15 | C88: 453
A89: 机关服务 | B89: 43 | C89: 239
A90: 事业运行 | B90: 5 | C90: 44
A91: 统战事务 | B91: =SUM(B92:B93) -> 156 | C91: =SUM(C92:C93) -> 162
A92: 行政运行 | B92: 102 | C92: 109
A93: 一般行政管理事务 | B93: 54 | C93: 53
A94: 其他共产党事务支出 | B94: 0 | C94: 4
A95: 一般行政管理事务 | B95: 0 | C95: 4
A96: 其他一般公共服务支出 | B96: 98 | C96: 640
A97: 其他一般公共服务支出 | B97: 98 | C97: 640
A98: 国防支出 | B98: 496 | C98: 442
A99: 国防动员 | B99: 496 | C99: 442
A100: 民兵 | B100: 496 | C100: 442
A101: 公共安全支出 | B101: =SUM(B102,B104,B107,B109,B111,B119,B121) -> 28,522 | C101: =SUM(C102,C104,C107,C109,C111,C119) -> 26,088
A102: 武装警察 | B102: 646 | C102: 589
A103: 消防 | B103: 646 | C103: 589
A104: 公安 | B104: =SUM(B105:B106) -> 26,707 | C104: =SUM(C105:C106) -> 23,225
A105: 行政运行 | B105: 20440 | C105: 18,942
A106: 一般行政管理事务 | B106: 6267 | C106: 4,283
A107: 检察 | B107: 12 | C107: 523
A108: 一般行政管理事务 | B108: 12 | C108: 523
A109: 法院 | B109: 23 | C109: 882
A110: 一般行政管理事务 | B110: 23 | C110: 882
A111: 司法 | B111: =SUM(B112:B118) -> 1,071 | C111: =SUM(C112:C118) -> 832
A112: 行政运行 | B112: 637 | C112: 582
A113: 一般行政管理事务 | B113: 5
A114: 基层司法业务 | B114: 56 | C114: 36
A115: 普法宣传 | B115: 15
A116: 律师公证管理 | B116: 150 | C116: 150
A117: 法律援助 | B117: 159 | C117: 18
A118: 事业运行 | B118: 49 | C118: 46
A119: 国家保密 | B119: 18 | C119: 37
A120: 一般行政管理事务 | B120: 18 | C120: 37
A121: 其他公共安全支出 | B121: 45
A122: 教育支出 | B122: =SUM(B123,B128,B135,B138,B140,B142) -> 47,291 | C122: =SUM(C123,C128,C135,C138,C140,C142) -> 44,318
A123: 教育管理事务 | B123: =SUM(B124:B127) -> 1,027 | C123: =SUM(C124:C127) -> 969
A124: 行政运行 | B124: 685 | C124: 645
A125: 一般行政管理事务 | B125: 100 | C125: 90
A126: 机关服务 | B126: 81 | C126: 57
A127: 其他教育管理事务支出 | B127: 161 | C127: 177
A128: 普通教育 | B128: =SUM(B129:B134) -> 35,738 | C128: =SUM(C129:C134) -> 33,682
A129: 学前教育 | B129: 451 | C129: 433
A130: 小学教育 | B130: 20405 | C130: 18,819
A131: 初中教育 | B131: 11649 | C131: 12,641
A132: 高中教育 | B132: 38 | C132: 60
A133: 高等教育 | C133: 50
A134: 其他普通教育支出 | B134: 3195 | C134: 1,679
A135: 职业教育 | B135: =SUM(B136:B137) -> 123 | C135: =SUM(C136:C137) -> 68
A136: 中专教育 | B136: 114 | C136: 1
A137: 职业高中教育 | B137: 9 | C137: 67
A138: 特殊教育 | B138: =SUM(B139) -> 28 | C138: =SUM(C139) -> 37
A139: 特殊学校教育 | B139: 28 | C139: 37
A140: 教育费附加安排的支出 | B140: 10275 | C140: 9,367
A141: 其他教育费附加安排的支出 | B141: 10275 | C141: 9,367
A142: 其他教育支出 | B142: 100 | C142: 195
A143: 其他教育支出 | B143: 100 | C143: 195
A144: 科学技术支出 | B144: =SUM(B145,B151,B155,B160,B158) -> 11,267 | C144: =SUM(C145,C151,C155,C160) -> 2,648
A145: 科学技术管理事务 | B145: =SUM(B146:B150) -> 628 | C145: =SUM(C146:C148) -> 253
A146: 行政运行 | B146: 201 | C146: 187
A147: 一般行政管理事务 | B147: 22 | C147: 41
A148: 其他科学技术管理事务支出 | B148: 25 | C148: 25
A149: 社会公益研究 | B149: 80
A150: 其他应用研究支出 | B150: 300
A151: 技术研究与开发 | B151: =SUM(B152:B154) -> 7,509 | C151: =SUM(C152:C153) -> 2,285
A152: 应用技术研究与开发 | B152: 1079 | C152: 1,935
A153: 产业技术研究与开发 | B153: 4871 | C153: 350
A154: 其他技术研究与开发支出 | B154: 1559
A155: 科学技术普及 | B155: =SUM(B156:B157) -> 100 | C155: 100
A156: 科普活动 | B156: 80 | C156: 100
A157: 其他科学技术普及支出 | B157: 20
A158: 科技重大专项 | B158: 3000
A159: 科技重大专项支出 | B159: 3000
A160: 其他科学技术支出 | B160: 30 | C160: 10
A161: 科技奖励 | B161: 20
A162: 其他科学技术支出 | B162: 10 | C162: 10
A163: 文化体育与传媒支出 | B163: =SUM(B164,B174) -> 3,021 | C163: =SUM(C164,C174) -> 3,570
A164: 文化 | B164: =SUM(B165:B173) -> 3,011 | C164: =SUM(C165:C173) -> 3,550
A165: 行政运行 | B165: 355 | C165: 309
A166: 一般行政管理事务 | B166: 892 | C166: 1,139
A167: 图书馆 | B167: 93 | C167: 238
A168: 文化活动 | B168: 56 | C168: 61
A169: 群众文化 | C169: =30+21 -> 51
A170: 文化交流与合作 | C170: 15
A171: 文化创作与保护 | C171: 44
A172: 文化市场管理 | C172: 30
A173: 其他文化支出 | B173: 1615 | C173: 1,663
A174: 文物 | B174: 10 | C174: 20
A175: 文物保护 | B175: 10 | C175: 10
A176: 其他文物支出 | C176: 10
A177: 社会保障和就业支出 | B177: =SUM(B178,B184,B193,B196,B200,B205,B210,B215,B220,B222,B225,B228,B231,B234) -> 34,998 | C177: =SUM(C178,C184,C193,C196,C200,C205,C210,C215,C220,C222,C225,C228,C231,C234) -> 30,411
A178: 人力资源和社会保障管理事务 | B178: =SUM(B179:B183) -> 3,670 | C178: =SUM(C179:C183) -> 3,160
A179: 行政运行 | B179: 1509 | C179: 1,575
A180: 一般行政管理事务 | B180: 550 | C180: 169
A181: 社会保险业务管理事务 | B181: 9 | C181: 25
A182: 社会保险经办机构 | B182: 181 | C182: 283
A183: 其他人力资源和社会保障管理事务支出 | B183: 1421 | C183: 1,108
A184: 民政管理事务 | B184: =SUM(B185:B192) -> 2,482 | C184: =SUM(C185:C192) -> 2,455
A185: 行政运行 | B185: 275 | C185: 224
A186: 一般行政管理事务 | B186: 20 | C186: 350
A187: 拥军优属 | B187: 371 | C187: 389
A188: 老龄事务 | B188: 475 | C188: 347
A189: 民间组织管理 | B189: 30
A190: 行政区划和地名管理 | B190: 77 | C190: 68
A191: 基层政权和社区建设 | B191: 67 | C191: 26
A192: 其他民政管理事务支出 | B192: 1167 | C192: 1,051
A193: 行政事业单位离退休 | B193: =SUM(B194:B195) -> 11,852 | C193: =SUM(C194:C195) -> 12,140
A194: 归口管理的行政单位离退休 | B194: 4036 | C194: 3,993
A195: 事业单位离退休 | B195: 7816 | C195: 8,147
A196: 就业补助 | B196: =SUM(B197:B199) -> 4451 | C196: 225
A197: 职业培训补贴 | B197: 870
A198: 高技能人才培养补助 | B198: 1008 | C198: 225
A199: 其他就业补助支出 | B199: 2573
A200: 抚恤 | B200: =SUM(B201:B204) -> 2,953 | C200: =SUM(C201:C204) -> 2,212
... 209 more rows
